Cogmind - Beta 14 @@@ ROGUE MODE // 2025.03.22 @ 00:58:58 Player: Alien Result: Escaped! Performance ------------- Evolutions (9) 4500 Regions Visited (20) 4000 Robots Destroyed (83) 415 Value Destroyed (2044) 2044 Prototype IDs (65) 1300 Alien Tech Used (4) 800 Bonus (7154) 7154 TOTAL SCORE: 20213 Bonus ------- Follower Combat Kills 54 Aligned with FarCom 300 Met Zhirov 300 Found Hidden Lab 3000 Pursued by Intercept 500 Win 3000 Cogmind --------- Core Integrity 1322/1600 Matter 88/300 Energy 99/100 System Corruption 2% Temperature Cool (0) Movement Core (50) Location To Epsilon Eridani Parts ------- > --- POWER (2) -------- (None) > --- PROPULSION (7) --- (None) > --- UTILITY (14) ----- (None) > --- WEAPON (3) ------- (None) > --- INVENTORY (5) ---- Light Quantum Reactor Core Reset Matrix Enhanced Nova Cannon Enhanced Nova Cannon Improved Plasma Cutter Peak State ------------ > --- POWER ------------ Quantum Reactor > --- PROPULSION ------- Improved VTOL Module Improved VTOL Module Improved VTOL Module Cooled VTOL Module Cooled VTOL Module Cooled VTOL Module Field Propulsion Drive > --- UTILITY ---------- Small Storage Unit Advanced Weight Redist. System Enhanced Optical Array Advanced Melee Analysis Suite Cloak of Protection Light Regenerative Plating Hacking Suite Hacking Suite Hacking Suite Improved Hacking Suite Deep Network Scanner System Shield System Shield Improved System Shield > --- WEAPON ----------- Enhanced Force Lance > --- INVENTORY -------- Light Quantum Reactor Transdimensional Reconstructor Core Reset Matrix Enhanced Nova Cannon Enhanced Nova Cannon Fusion Bomb Launcher Fusion Bomb Launcher Improved Plasma Cutter [Rating: 120] Favorites ----------- Power Deuterium Engine Engine Deuterium Engine Power Core Micro Fission Core Reactor Light Particle Reactor Propulsion Armored Treads Treads Armored Treads Flight Unit Improved VTOL Module Utility Hacking Suite Device Advanced Weight Redist. System Storage High-capacity Storage Unit Processor Enhanced Optical Array Hackware Hacking Suite Protection Hardened Heavy Armor Plating Weapon Precision Assault Rifle Energy Gun Heavy EM Shotgun Energy Cannon Beam Cannon Ballistic Gun Precision Assault Rifle Ballistic Cannon Light Cannon Launcher Grenade Launcher Special Weapon Improved Plasma Cutter Slashing Weapon Power Sword Piercing Weapon Enhanced Force Lance Build | -11 -10 -10 -10 -9 -8 -8 -8 -8 -6 -5 -5 -5 -5 -4 -4 -3 -3 -3 -2 -1 ------- Run | Yrd Mat Min Exi Min Mat Sto Rec Scr Fac Fac Upp Upp Zhi Pro Fac Res Arm Lab Res Acc Slots Evolved 18 | . . . . . 4 . . . 4 2 . . . . 2 2 . . 2 2 Power 1 | . . . . . . . . . . 1 . . . . . . . . . . Propulsion 4 | . . . . . 1 . . . 2 . . . . . 1 . . . . . Utility 12 | . . . . . 2 . . . 2 1 . . . . 1 2 . . 2 2 Weapon 1 | . . . . . 1 . . . . . . . . . . . . . . . Parts Attached 151 | 7 16 2 1 2 28 10 2 3 27 10 . . 5 3 13 9 2 4 1 6 Power 23 | 1 2 . 1 . 3 . . . 6 3 . . 2 . 3 1 . . . 1 Engine 16 | 1 2 . 1 . 3 . . . 5 2 . . 1 . 1 . . . . . Core 1 | . . . . . . . . . . 1 . . . . . . . . . . Reactor 6 | . . . . . . . . . 1 . . . 1 . 2 1 . . . 1 Propulsion 32 | 2 2 . . . 10 3 . . 6 3 . . . . 4 1 . . . 1 Treads 14 | 2 2 . . . 9 1 . . . . . . . . . . . . . . Leg . | . . . . . . . . . . . . . . . . . . . . . Wheel . | . . . . . . . . . . . . . . . . . . . . . Hover . | . . . . . . . . . . . . . . . . . . . . . Flight 18 | . . . . . 1 2 . . 6 3 . . . . 4 1 . . . 1 Utility 50 | 2 2 . . 2 4 3 2 1 11 2 . . 3 3 2 7 . 2 1 3 Device 25 | 1 . . . 1 1 . . . 9 1 . . 2 3 1 5 . 1 . . Storage 5 | 1 1 . . . 1 . . . 1 . . . . . . 1 . . . . Processor 2 | . . . . . . . . . . . . . . . 1 . . . . 1 Hackware 9 | . . . . . 1 . 1 1 1 1 . . . . . . . 1 1 2 Protection 9 | . 1 . . 1 1 3 1 . . . . . 1 . . 1 . . . . Artifact . | . . . . . . . . . . . . . . . . . . . . . Weapon 46 | 2 10 2 . . 11 4 . 2 4 2 . . . . 4 . 2 2 . 1 Energy Gun 2 | . . . . . 1 . . . . . . . . . . . . 1 . . Energy Cannon 1 | . . . . . 1 . . . . . . . . . . . . . . . Ballistic Gun 17 | 2 . . . . 9 3 . 1 2 . . . . . . . . . . . Ballistic Cannon 9 | . 8 1 . . . . . . . . . . . . . . . . . . Launcher 8 | . 2 1 . . . 1 . 1 1 . . . . . . . 1 . . 1 Special Weapon 1 | . . . . . . . . . . . . . . . . . . 1 . . Impact Weapon . | . . . . . . . . . . . . . . . . . . . . . Slashing Weapon 7 | . . . . . . . . . 1 2 . . . . 4 . . . . . Piercing Weapon 1 | . . . . . . . . . . . . . . . . . 1 . . . Special Melee Weapon . | . . . . . . . . . . . . . . . . . . . . . Unidentified Prototypes 21 | . . . . . 3 4 . . 4 1 . . 3 . . 1 1 4 . . Corrupted Parts 1 | . . . . . . . . 1 . . . . . . . . . . . . System Corruption 3 | . . . . . . . . 3 . . . . . . . . . . . . Parts Lost 4 | . . . . . 2 . . . . 1 . . . . . . . 1 . . Power 1 | . . . . . 1 . . . . . . . . . . . . . . . Propulsion . | . . . . . . . . . . . . . . . . . . . . . Utility 1 | . . . . . . . . . . . . . . . . . . 1 . . Weapon 2 | . . . . . 1 . . . . 1 . . . . . . . . . . Highest Loss Streak 2 | . . . . . 2 . . . . 1 . . . . . . . 1 . . To Critical Strikes . | . . . . . . . . . . . . . . . . . . . . . Average Slot Usage (%) 93 | . 97 100 100 100 90 90 93 100 93 91 94 94 92 88 89 90 84 81 77 78 Engine 8 | . 13 14 14 14 8 9 9 9 5 7 5 5 5 5 4 2 . . . . Treads 19 | . 27 28 28 28 26 26 27 27 . . . . . . . . . . . . Flight 8 | . . . . . . . . . 33 29 29 29 29 29 27 27 28 27 25 24 Device 3 | . 5 . . 1 1 . . . 7 11 11 11 11 11 10 13 13 8 8 6 Storage 8 | . 14 14 14 14 9 9 9 9 6 5 5 5 5 5 5 4 4 4 4 3 Hackware 14 | . . . . . 8 9 13 27 24 20 23 23 23 23 21 19 19 20 22 24 Protection 5 | . 7 14 14 12 8 9 8 . . . . . . . . 3 4 4 4 3 Ballistic Gun 13 | . 1 . . . 25 27 27 27 . . . . . . . . . . . . Ballistic Cannon 5 | . 25 27 28 28 1 . . . . . . . . . . . . . . . Slashing Weapon 2 | . . . . . . . . . 5 5 11 11 11 11 14 10 3 . . . Peak Build Rating 120 | 7 9 9 9 9 46 46 47 45 64 68 67 67 70 65 89 94 96 103 98 120 Average Rating 45 | 4 8 9 8 9 39 45 45 44 52 59 67 67 64 63 83 89 87 91 96 104 On Entrance 50 | . 7 9 9 9 9 46 46 47 45 53 67 67 67 62 65 80 92 81 94 98 Naked Turns 4 | . . . . . . . . . . . . . . . . . . . . 4 Heaviest Build 81 | 14 34 34 34 34 81 81 81 61 29 33 30 30 30 31 37 40 40 39 39 45 Greatest Support 60 | 40 40 40 40 40 60 60 60 60 34 36 38 34 34 38 45 45 45 45 39 52 Greatest Overweight (x) 7 | 3 1 . . . 2 2 1 1 7 2 . . . . 1 1 3 . . 3 Average Overweight (x) . | . . . . . . 1 1 1 . . . . . . . . . . . . Largest Inventory Capacity 20 | 8 15 15 15 15 20 20 20 20 20 8 8 8 8 8 8 8 8 8 8 8 Average Capacity 15 | 7 14 15 15 15 18 20 20 20 8 8 8 8 8 8 8 8 8 8 8 7 Most Carried 20 | 4 15 15 15 15 20 20 20 20 20 8 8 8 8 8 8 8 8 8 8 8 Average Carried 15 | 2 13 15 14 14 18 19 19 20 7 7 8 8 7 8 7 7 7 7 7 7 Final Capacity 20 | 8 15 15 15 15 20 20 20 20 8 8 8 8 8 8 8 8 8 8 8 5 Final Carried 20 | 2 15 15 15 15 20 20 20 20 8 8 8 8 8 8 8 8 7 7 8 5 Class Distribution -------------------- 26% | Skirmisher 24% | Hacker-Sprinter 20% | Mutant 16% | Hacker-Gunner 7% | Hacker-Skirmisher 3% | Wizard-Sprinter Dominant Class ---------------- Mutant | -10/Materials Mutant | -10/Mines Mutant | -10/Exiles Mutant | -9/Mines Skirmisher | -8/Materials Skirmisher | -8/Storage Hacker-Skirmisher | -8/Recycling Hacker-Gunner | -8/Scraptown Hacker-Sprinter | -6/Factory Hacker-Sprinter | -5/Factory Hacker-Sprinter | -5/Upper Caves Hacker-Sprinter | -5/Upper Caves Hacker-Sprinter | -5/Zhirov Hacker-Sprinter | -4/Proximity Caves Hacker-Sprinter | -4/Factory Hacker-Sprinter | -3/Research Hacker-Sprinter | -3/Armory Wizard-Sprinter | -3/Lab Wizard-Sprinter | -2/Research Wizard-Sprinter | -1/Access Resources | -11 -10 -10 -10 -9 -8 -8 -8 -8 -6 -5 -5 -5 -5 -4 -4 -3 -3 -3 -2 -1 ----------- Run | Yrd Mat Min Exi Min Mat Sto Rec Scr Fac Fac Upp Upp Zhi Pro Fac Res Arm Lab Res Acc Matter Collected 3190 | 274 314 211 . 120 1152 186 179 . 178 306 . . . 129 . 35 . . 42 64 Remotely . | . . . . . . . . . . . . . . . . . . . . . Salvage Created 3315 | 168 233 72 . 87 1357 155 422 . 206 447 . . . . . 35 . . 42 91 Parts 192 | 16 17 11 . 4 85 8 18 . 10 11 . . . . . 1 . . 2 9 Haulers Intercepted 10 | . 1 . . . 4 . . . 1 4 . . . . . . . . . . Recyclers Shooed 4 | . 1 1 . . 2 . . . . . . . . . . . . . . . Parts Field Recycled . | . . . . . . . . . . . . . . . . . . . . . Retrieved Matter . | . . . . . . . . . . . . . . . . . . . . . Parts Self-Destructed . | . . . . . . . . . . . . . . . . . . . . . Prevented . | . . . . . . . . . . . . . . . . . . . . . Kills | -11 -10 -10 -10 -9 -8 -8 -8 -8 -6 -5 -5 -5 -5 -4 -4 -3 -3 -3 -2 -1 ------- Run | Yrd Mat Min Exi Min Mat Sto Rec Scr Fac Fac Upp Upp Zhi Pro Fac Res Arm Lab Res Acc Combat Hostiles Destroyed 38 | . 6 8 . 3 15 3 3 . . . . . . . . . . . . . Guns 19 | . . . . . 13 3 3 . . . . . . . . . . . . . Cannons 11 | . 1 5 . 3 2 . . . . . . . . . . . . . . . AOE 8 | . 5 3 . . . . . . . . . . . . . . . . . . Classes Destroyed 13 | 2 5 1 . . 5 . . . . . . . . . . . . . . . Worker 3 | . . . . . 1 . . . . 2 . . . . . . . . . . Builder 2 | . . . . . 2 . . . . . . . . . . . . . . . Tunneler 5 | 4 1 . . . . . . . . . . . . . . . . . . . Hauler 10 | . 1 . . . 4 . . . 1 4 . . . . . . . . . . Recycler 8 | 1 1 . . . 3 . 3 . . . . . . . . . . . . . Mechanic 1 | . . . . . 1 . . . . . . . . . . . . . . . Operator 5 | . 2 . . . 1 . . . 1 . . . . . . . . . . 1 Watcher 12 | . 1 . . . 3 . . . 3 1 . . . . . 1 . . 1 2 Swarmer 10 | . 3 7 . . . . . . . . . . . . . . . . . . Grunt 17 | . 3 . . 3 9 2 . . . . . . . . . . . . . . Duelist 2 | . . . . . 2 . . . . . . . . . . . . . . . Sentry 8 | . . . . . 4 1 3 . . . . . . . . . . . . . Assembled 1 | . . 1 . . . . . . . . . . . . . . . . . . Best Kill Streak 5 | 5 3 3 . 3 4 2 2 . 3 2 . . . . . 1 . . 1 1 Combat Bots Only 3 | . 3 3 . 3 3 2 1 . . . . . . . . . . . . . Max Kills in Single Turn 3 | 1 2 3 . 1 2 1 1 . 1 2 . . . . . 1 . . 1 1 Gunslinging . | . . . . . . . . . . . . . . . . . . . . . Exploded 3 | . 2 3 . . . . . . . . . . . . . . . . . . Melee . | . . . . . . . . . . . . . . . . . . . . . Uniques/NPCs Destroyed . | . . . . . . . . . . . . . . . . . . . . . Combat | -11 -10 -10 -10 -9 -8 -8 -8 -8 -6 -5 -5 -5 -5 -4 -4 -3 -3 -3 -2 -1 -------- Run | Yrd Mat Min Exi Min Mat Sto Rec Scr Fac Fac Upp Upp Zhi Pro Fac Res Arm Lab Res Acc Hostile Shots Fired 275 | . 24 8 . 39 56 4 14 . 3 13 4 . . 6 10 17 1 24 5 47 Missed 92 | . 9 3 . 7 14 2 4 . 1 8 1 . . 5 7 8 1 11 1 10 Damage Taken 3137 | . 183 73 . 373 669 32 148 . 98 209 57 . . 23 61 154 35 341 94 587 Core 726 | . 31 16 . 89 27 . 14 . . 46 38 . . . 44 41 8 52 42 278 Absorbed by Shields 5 | . . . . . . . . . . 5 . . . . . . . . . . Regen/Repaired (Parts) 592 | . 80 . . . . . . 233 . 20 . . . . 105 21 . 21 25 87 Core Remaining (%) 87 | 100 . . . 45 . . . 92 100 . . . . 91 96 . . 84 97 82 Volleys Fired 134 | 7 25 8 . 12 58 7 9 . . 6 . . . . . . . . . 2 Largest 3 | 2 2 2 . 2 3 3 3 . . 1 . . . . . . . . . 1 Hottest 115 | 40 70 70 . 70 115 84 84 . . 30 . . . . . . . . . 52 Shots Fired 317 | 14 43 13 . 21 169 20 29 . . 6 . . . . . . . . . 2 Gun 213 | 14 . . . . 150 20 29 . . . . . . . . . . . . . Cannon 86 | . 36 10 . 21 19 . . . . . . . . . . . . . . . Launcher 18 | . 7 3 . . . . . . . 6 . . . . . . . . . 2 Special . | . . . . . . . . . . . . . . . . . . . . . Kinetic 292 | 14 36 10 . 21 162 20 29 . . . . . . . . . . . . . Thermal 7 | . . . . . 7 . . . . . . . . . . . . . . . Explosive 18 | . 7 3 . . . . . . . 6 . . . . . . . . . 2 Electromagnetic . | . . . . . . . . . . . . . . . . . . . . . Robot Hit Streak 25 | 8 9 8 . 9 25 19 24 . . . . . . . . . . . . . Robot Miss Streak 3 | 1 2 . . 3 3 . 1 . . . . . . . . . . . . . Penetration Max . | . . . . . . . . . . . . . . . . . . . . . Secondary Targets 1 | . . . . . 1 . . . . . . . . . . . . . . . Max Gunslinging Chain 1 | . . . . . 1 . . . . . . . . . . . . . . . Shots Hit Robots 253 | 10 25 8 . 13 126 16 18 . 5 21 . . . . . 6 . . 2 3 Core Hits 126 | 8 16 10 . 4 52 6 8 . 4 9 . . . . . 1 . . 1 7 Critical Kills 2 | . . . . . 1 1 . . . . . . . . . . . . . . Critical Parts Destroyed 3 | 2 . . . . 1 . . . . . . . . . . . . . . . Critical Strikes 7 | 2 . . . . 2 1 . . . 2 . . . . . . . . . . Destroy 5 | 2 . . . . 2 1 . . . . . . . . . . . . . . Sever 2 | . . . . . . . . . . 2 . . . . . . . . . . Melee Attacks 101 | . . . . . . . . . 17 37 1 . . . 5 13 . 5 3 20 Impact . | . . . . . . . . . . . . . . . . . . . . . Slashing 73 | . . . . . . . . . 17 37 1 . . . 5 13 . . . . Piercing 28 | . . . . . . . . . . . . . . . . . . 5 3 20 Sneak Attacks 9 | . . . . . . . . . 2 4 . . . . . . . . 1 2 Combat Hostiles . | . . . . . . . . . . . . . . . . . . . . . Follow-up Attacks 2 | . . . . . . . . . . . . . . . . 2 . . . . Damage Inflicted 7110 | 119 864 246 . 237 2441 321 383 . 311 1240 . . . . . 242 . . 205 501 Guns 3034 | 119 . . . . 2216 321 378 . . . . . . . . . . . . . Cannons 1038 | . 456 125 . 237 220 . . . . . . . . . . . . . . . Explosions 764 | . 408 108 . . . . . . . 111 . . . . . . . . . 137 Melee 2251 | . . . . . . . . . 311 1129 . . . . . 242 . . 205 364 Ramming 23 | . . 13 . . 5 . 5 . . . . . . . . . . . . . Kinetic 4003 | 119 456 125 . 237 2367 321 378 . . . . . . . . . . . . . Thermal 69 | . . . . . 69 . . . . . . . . . . . . . . . Explosive 741 | . 408 108 . . . . . . . 88 . . . . . . . . . 137 Electromagnetic 23 | . . . . . . . . . . 23 . . . . . . . . . . Impact . | . . . . . . . . . . . . . . . . . . . . . Slashing 1682 | . . . . . . . . . 311 1129 . . . . . 242 . . . . Piercing 569 | . . . . . . . . . . . . . . . . . . . 205 364 Highest Corruption 7 | . . . . . 4 4 4 7 1 . . . . . . . . 4 . 2 Average Corruption 3 | . . . . . 4 4 4 7 1 . . . . . . . . 1 . 2 Corruption Purged . | . . . . . . . . . . . . . . . . . . . . . Corruption Blocked . | . . . . . . . . . . . . . . . . . . . . . Effects 87 | . . . . . 30 9 47 . 1 . . . . . . . . . . . Message Errors 22 | . . . . . 9 1 12 . . . . . . . . . . . . . Matter Fused 21 | . . . . . 6 3 12 . . . . . . . . . . . . . Heat Flow Errors 9 | . . . . . 3 3 3 . . . . . . . . . . . . . Energy Discharges 11 | . . . . . 2 1 8 . . . . . . . . . . . . . Parts Fused 3 | . . . . . 1 1 1 . . . . . . . . . . . . . Data Loss (minor) 10 | . . . . . 4 . 6 . . . . . . . . . . . . . Data Loss (major) 5 | . . . . . 4 . . . 1 . . . . . . . . . . . Misfires 2 | . . . . . . . 2 . . . . . . . . . . . . . Alerts 3 | . . . . . . . 3 . . . . . . . . . . . . . Weapon Failures 1 | . . . . . 1 . . . . . . . . . . . . . . . Overload Shots . | . . . . . . . . . . . . . . . . . . . . . Overflow Damage 388 | . . . . . . . . . 42 100 . . . . . 37 . . 110 99 Projectiles . | . . . . . . . . . . . . . . . . . . . . . Explosions 1 | . . . . . . . . . . 1 . . . . . . . . . . Melee 387 | . . . . . . . . . 42 99 . . . . . 37 . . 110 99 Knockbacks 8 | . 3 2 . 1 2 . . . . . . . . . . . . . . . Impact . | . . . . . . . . . . . . . . . . . . . . . Kinetic 8 | . 3 2 . 1 2 . . . . . . . . . . . . . . . Secondary . | . . . . . . . . . . . . . . . . . . . . . Self-Inflicted Damage 160 | . 23 22 . . . . . . . 115 . . . . . . . . . . Shots 5 | . 1 1 . . . . . . . 3 . . . . . . . . . . Rammed 5 | . 1 3 . . . . 1 . . . . . . . . . . . . . Targets Rammed 6 | . 1 3 . . 1 . 1 . . . . . . . . . . . . . Kicked . | . . . . . . . . . . . . . . . . . . . . . Crushed 1 | . . . . . 1 . . . . . . . . . . . . . . . Highest Temperature 460 | . 114 54 . 279 460 229 240 . 9 41 71 4 3 10 44 328 69 110 7 202 Average Temperature 62 | . 29 20 . 149 116 69 72 . 3 10 7 2 2 7 15 67 17 20 4 42 Received Heat Transfer 729 | . 78 . . 207 297 18 27 . 9 33 . . . 9 21 12 . . 18 . Effects 5 | . . . . 1 4 . . . . . . . . . . . . . . . Energy Bleed 1 | . . . . . 1 . . . . . . . . . . . . . . . Interference 4 | . . . . 1 3 . . . . . . . . . . . . . . . Siege Activations . | . . . . . . . . . . . . . . . . . . . . . Robots Corrupted . | . . . . . . . . . . . . . . . . . . . . . Combat Hostiles . | . . . . . . . . . . . . . . . . . . . . . Parts Fried . | . . . . . . . . . . . . . . . . . . . . . Impact Corruptions . | . . . . . . . . . . . . . . . . . . . . . Robots Melted . | . . . . . . . . . . . . . . . . . . . . . Combat Hostiles . | . . . . . . . . . . . . . . . . . . . . . Parts Melted . | . . . . . . . . . . . . . . . . . . . . . Heat Transferred 148 | . . . . . 148 . . . . . . . . . . . . . . . Parts Sabotaged . | . . . . . . . . . . . . . . . . . . . . . Parts Stolen . | . . . . . . . . . . . . . . . . . . . . . Parts Stripped . | . . . . . . . . . . . . . . . . . . . . . Power Chain Reactions . | . . . . . . . . . . . . . . . . . . . . . Alert | -11 -10 -10 -10 -9 -8 -8 -8 -8 -6 -5 -5 -5 -5 -4 -4 -3 -3 -3 -2 -1 ------- Run | Yrd Mat Min Exi Min Mat Sto Rec Scr Fac Fac Upp Upp Zhi Pro Fac Res Arm Lab Res Acc Peak Influence 322 | 25 178 227 . 70 253 157 120 . 189 322 . . . . 35 145 104 . 70 294 Initial 106 | . 16 69 . . 27 106 . . . 92 . . . . 18 6 7 . . 41 Average 73 | 8 85 101 . 59 84 84 29 . 80 141 . . . . 20 92 41 . 26 121 Maximum Alert Level 1 | . . 1 . . 1 . . . . 1 . . . . . . . . . 1 Low Security (%) 94 | 100 100 72 . 100 96 100 100 . 100 75 . . . . 100 100 100 . 100 83 Level 1 5 | . . 27 . . 3 . . . . 24 . . . . . . . . . 16 Level 2 . | . . . . . . . . . . . . . . . . . . . . . Level 3 . | . . . . . . . . . . . . . . . . . . . . . Level 4 . | . . . . . . . . . . . . . . . . . . . . . Level 5 . | . . . . . . . . . . . . . . . . . . . . . High Security . | . . . . . . . . . . . . . . . . . . . . . Max Security . | . . . . . . . . . . . . . . . . . . . . . Squads Dispatched 17 | . . . . . 1 3 . . 2 3 . . . . 3 1 . . 1 3 Investigation 8 | . . . . . . 1 . . 2 2 . . . . 2 1 . . . . Extermination 1 | . . . . . . . . . . . . . . . 1 . . . . . Reinforcement 4 | . . . . . 1 2 . . . 1 . . . . . . . . . . Assault 1 | . . . . . . . . . . . . . . . . . . . 1 . Garrison . | . . . . . . . . . . . . . . . . . . . . . Intercept 3 | . . . . . . . . . . . . . . . . . . . . 3 Searches Triggered . | . . . . . . . . . . . . . . . . . . . . . Construction Impeded . | . . . . . . . . . . . . . . . . . . . . . Haulers Reinforced . | . . . . . . . . . . . . . . . . . . . . . Active Scanning Responses . | . . . . . . . . . . . . . . . . . . . . . Cargo Convoy Interrupts 1 | . . . . . . . . . 1 . . . . . . . . . . . Stealth | -11 -10 -10 -10 -9 -8 -8 -8 -8 -6 -5 -5 -5 -5 -4 -4 -3 -3 -3 -2 -1 --------- Run | Yrd Mat Min Exi Min Mat Sto Rec Scr Fac Fac Upp Upp Zhi Pro Fac Res Arm Lab Res Acc Distress Signals 11 | . 2 1 . . 1 2 . . . 1 . . . . . 1 2 . 1 . Communications Jammed . | . . . . . . . . . . . . . . . . . . . . . Distress Signals . | . . . . . . . . . . . . . . . . . . . . . Times Spotted 132 | . 12 13 . 3 21 9 3 . 12 13 5 . . 3 3 9 12 1 4 9 Peak Tracking Total 8 | . 3 3 . 3 3 3 2 . 5 8 8 . . 2 4 7 7 1 4 5 Tactical Retreats 18 | . . 1 . . . 3 . . 3 4 . . . 1 . 1 2 . 1 2 Traps | -11 -10 -10 -10 -9 -8 -8 -8 -8 -6 -5 -5 -5 -5 -4 -4 -3 -3 -3 -2 -1 ------- Run | Yrd Mat Min Exi Min Mat Sto Rec Scr Fac Fac Upp Upp Zhi Pro Fac Res Arm Lab Res Acc Traps Triggered 13 | . 3 . . . 1 . . . 2 3 . . . . . . 1 . . 3 Indirectly . | . . . . . . . . . . . . . . . . . . . . . Trap Hack Attempts . | . . . . . . . . . . . . . . . . . . . . . Triggered . | . . . . . . . . . . . . . . . . . . . . . Disarmed . | . . . . . . . . . . . . . . . . . . . . . Reprogrammed . | . . . . . . . . . . . . . . . . . . . . . Reused . | . . . . . . . . . . . . . . . . . . . . . Traps Extracted . | . . . . . . . . . . . . . . . . . . . . . Installed . | . . . . . . . . . . . . . . . . . . . . . Triggered 3 | . . . . . . . . . 2 . . . . 1 . . . . . . Machines | -11 -10 -10 -10 -9 -8 -8 -8 -8 -6 -5 -5 -5 -5 -4 -4 -3 -3 -3 -2 -1 ---------- Run | Yrd Mat Min Exi Min Mat Sto Rec Scr Fac Fac Upp Upp Zhi Pro Fac Res Arm Lab Res Acc Machines Disabled 9 | . 1 . . . 1 1 . . . 2 . . . . . . . 3 . 1 Max in Single Turn 2 | . 1 . . . 1 1 . . . 2 . . . . . . . 1 . 1 Garrison Access 7 | . . . . . 1 . . . 2 1 . . . . 1 . . . 2 . Machines Repaired . | . . . . . . . . . . . . . . . . . . . . . Machines Dismantled 2 | . . . . . . . . . . . . . . . . . . 2 . . Machines Sabotaged . | . . . . . . . . . . . . . . . . . . . . . Overloaded Fab Kills . | . . . . . . . . . . . . . . . . . . . . . Hacking | -11 -10 -10 -10 -9 -8 -8 -8 -8 -6 -5 -5 -5 -5 -4 -4 -3 -3 -3 -2 -1 --------- Run | Yrd Mat Min Exi Min Mat Sto Rec Scr Fac Fac Upp Upp Zhi Pro Fac Res Arm Lab Res Acc Machines Accessed 73 | . 9 . 2 . 5 4 13 3 8 6 . . 5 . 5 5 1 . 2 5 Terminals 36 | . 7 . . . 3 4 6 . 2 3 . . . . 1 3 1 . 1 5 Fabricators 3 | . . . . . . . . . 1 1 . . . . 1 . . . . . Repair Stations 5 | . 1 . . . . . . . 1 1 . . . . 1 1 . . . . Recycling Units 8 | . 1 . . . . . 7 . . . . . . . . . . . . . Scanalyzers 5 | . . . . . 1 . . . 2 . . . . . 1 1 . . . . Garrison Access 6 | . . . . . 1 . . . 2 1 . . . . 1 . . . 1 . Total Hacks 188 | . 25 . 2 . 17 10 26 12 20 14 . . 18 . 17 11 3 . 3 10 Successful 126 | . 13 . 2 . 13 4 14 12 12 9 . . 18 . 12 6 1 . 2 8 Failed 60 | . 11 . . . 4 6 11 . 8 5 . . . . 5 5 2 . 1 2 Catastrophic 10 | . 1 . . . 1 2 2 . 1 1 . . . . . 1 . . . 1 Database Lockouts 2 | . 1 . . . . . 1 . . . . . . . . . . . . . Manual 55 | . 9 . 1 . 5 4 24 . 5 1 . . . . . 1 3 1 . 1 Terminals 87 | . 18 . . . 5 10 17 . 8 8 . . . . 1 6 3 . 1 10 Fabricators 10 | . . . . . . . . . 3 2 . . . . 5 . . . . . Repair Stations 16 | . 3 . . . . . . . 2 3 . . . . 6 2 . . . . Recycling Units 13 | . 4 . . . . . 9 . . . . . . . . . . . . . Scanalyzers 22 | . . . . . 11 . . . 4 . . . . . 4 3 . . . . Garrison Access 8 | . . . . . 1 . . . 3 1 . . . . 1 . . . 2 . Terminal Hacks 71 | . 8 . 2 . 1 4 7 12 2 4 . . 18 . 1 2 1 . 1 8 Record 22 | . 1 . 1 . . . . 12 . 1 . . 6 . . . . . . 1 Part Schematic 5 | . . . . . . . . . 1 . . . 4 . . . . . . . Robot Analysis 11 | . 3 . . . 1 . 1 . . . . . 4 . . . . . 1 1 Prototype ID Bank 14 | . 2 . . . . 1 6 . . 1 . . 4 . . . . . . . Open Door 4 | . . . . . . 2 . . . . . . . . 1 . . . . 1 Level Access Points 1 | . . . . . . . . . . . . . . . . . . . . 1 Branch Access Points 2 | . . . . . . . . . . 1 . . . . . 1 . . . . Machine Index 3 | . . . . . . . . . 1 1 . . . . . . . . . 1 Alert Level 1 | . . . . . . . . . . . . . . . . . . . . 1 Unreport Threat 1 | . . . . . . 1 . . . . . . . . . . . . . . Reinforcement Status 1 | . 1 . . . . . . . . . . . . . . . . . . . Zone Layout 5 | . 1 . . . . . . . . . . . . . . 1 1 . . 2 Derelict Proto ID Bank 1 | . . . 1 . . . . . . . . . . . . . . . . . Fabricator Hacks 8 | . . . . . . . . . 3 2 . . . . 3 . . . . . Load Schematic 3 | . . . . . . . . . 1 1 . . . . 1 . . . . . Build 5 | . . . . . . . . . 2 1 . . . . 2 . . . . . Repair Station Hacks 11 | . 3 . . . . . . . 1 2 . . . . 3 2 . . . . Scan Component 7 | . 2 . . . . . . . 1 1 . . . . 2 1 . . . . Repair 4 | . 1 . . . . . . . . 1 . . . . 1 1 . . . . Recycling Unit Hacks 2 | . 2 . . . . . . . . . . . . . . . . . . . Process 1 | . 1 . . . . . . . . . . . . . . . . . . . Retrieve Matter 1 | . 1 . . . . . . . . . . . . . . . . . . . Scanalyzer 21 | . . . . . 11 . . . 4 . . . . . 4 2 . . . . Insert Component 10 | . . . . . 5 . . . 2 . . . . . 2 1 . . . . Analyze 11 | . . . . . 6 . . . 2 . . . . . 2 1 . . . . Garrison Access Hacks 6 | . . . . . 1 . . . 2 1 . . . . 1 . . . 1 . Seal Access 6 | . . . . . 1 . . . 2 1 . . . . 1 . . . 1 . Unauthorized Hacks 7 | . . . . . . . 7 . . . . . . . . . . . . . Terminals . | . . . . . . . . . . . . . . . . . . . . . Fabricators . | . . . . . . . . . . . . . . . . . . . . . Repair Stations . | . . . . . . . . . . . . . . . . . . . . . Recycling Units 7 | . . . . . . . 7 . . . . . . . . . . . . . Tunnel 7 | . . . . . . . 7 . . . . . . . . . . . . . Scanalyzers . | . . . . . . . . . . . . . . . . . . . . . Garrison Access . | . . . . . . . . . . . . . . . . . . . . . Data Cores Recovered 4 | . 2 . . . . . . . 1 . . . . . . . . . . 1 Used 1 | . . . . . . . . . . . . . . . . . . . . 1 Hacking Detections 38 | . 6 . . . 4 3 6 . 3 4 . . . . 2 4 1 . 1 4 Full Trace Events 13 | . 1 . . . . 1 5 . 1 2 . . . . 2 1 . . . . Feedback Events . | . . . . . . . . . . . . . . . . . . . . . Feedback Blocked . | . . . . . . . . . . . . . . . . . . . . . Robot Schematics Acquired . | . . . . . . . . . . . . . . . . . . . . . Robots Built 2 | . . . . . . . . . 2 . . . . . . . . . . . Authchips . | . . . . . . . . . . . . . . . . . . . . . Time 152 | . . . . . . . . . 152 . . . . . . . . . . . Total Robot Build Rating 10 | . . . . . . . . . 10 . . . . . . . . . . . Part Schematics Acquired 13 | . . . . . 4 . . . 3 . . . 4 . 1 1 . . . . Parts Built 5 | . . . . . . . . . 1 1 . . . . 3 . . . . . Authchips 1 | . . . . . . . . . 1 . . . . . . . . . . . Time 541 | . . . . . . . . . 134 134 . . . . 273 . . . . . Total Part Build Rating 30 | . . . . . . . . . 4 4 . . . . 22 . . . . . Parts Repaired 4 | . 1 . . . . . . . . 1 . . . . 1 1 . . . . Time 155 | . 26 . . . . . . . . 44 . . . . 50 35 . . . . Parts Recycled . | . . . . . . . . . . . . . . . . . . . . . Recycled Matter 153 | . 153 . . . . . . . . . . . . . . . . . . . Retrieved Matter 153 | . 153 . . . . . . . . . . . . . . . . . . . Retrieved Components . | . . . . . . . . . . . . . . . . . . . . . Parts Scanalyzed 9 | . . . . . 5 . . . 2 . . . . . 1 1 . . . . Part Schematics Acquired 8 | . . . . . 4 . . . 2 . . . . . 1 1 . . . . Parts Damaged . | . . . . . . . . . . . . . . . . . . . . . Bothacking | -11 -10 -10 -10 -9 -8 -8 -8 -8 -6 -5 -5 -5 -5 -4 -4 -3 -3 -3 -2 -1 ------------ Run | Yrd Mat Min Exi Min Mat Sto Rec Scr Fac Fac Upp Upp Zhi Pro Fac Res Arm Lab Res Acc Used RIF Installer . | . . . . . . . . . . . . . . . . . . . . . Robots Hacked . | . . . . . . . . . . . . . . . . . . . . . Non-combat . | . . . . . . . . . . . . . . . . . . . . . Combat . | . . . . . . . . . . . . . . . . . . . . . Robot Hacks Applied . | . . . . . . . . . . . . . . . . . . . . . Relay Couplers Released 2 | . . . . . . . . . . . . . . . . . . . 2 . Machine Destruction 2 | . . . . . . . . . . . . . . . . . . . 2 . Fabnet Peak Effective % . | . . . . . . . . . . . . . . . . . . . . . Robots Rewired 4 | . . . . . . . . . . . . . . . . . 4 . . . Allies Hacked . | . . . . . . . . . . . . . . . . . . . . . Hacks Repelled . | . . . . . . . . . . . . . . . . . . . . . Allies | -11 -10 -10 -10 -9 -8 -8 -8 -8 -6 -5 -5 -5 -5 -4 -4 -3 -3 -3 -2 -1 -------- Run | Yrd Mat Min Exi Min Mat Sto Rec Scr Fac Fac Upp Upp Zhi Pro Fac Res Arm Lab Res Acc Total Allies 14 | . . 2 . . . . . . 5 3 . . . . . . 4 . . . Largest Group 5 | . . 2 1 . . . . . 5 3 . . . . . . 2 . . . Highest-Rated Group 179 | . . 45 31 . . . . . 179 93 . . . . . . 130 . . . Highest-Rated Ally 65 | . . 31 31 . . . . . 43 31 . . . . . . 65 . . . Total Orders . | . . . . . . . . . . . . . . . . . . . . . Ally Attacks 35 | . . 13 . . . . . . 6 4 . . . . . . 12 . . . Total Damage 675 | . . 118 . . . . . . 137 43 . . . . . . 377 . . . Kills 5 | . . 4 . . . . . . 1 . . . . . . . . . . . Allies Corrupted . | . . . . . . . . . . . . . . . . . . . . . Allies Melted . | . . . . . . . . . . . . . . . . . . . . . Intel | -11 -10 -10 -10 -9 -8 -8 -8 -8 -6 -5 -5 -5 -5 -4 -4 -3 -3 -3 -2 -1 ------- Run | Yrd Mat Min Exi Min Mat Sto Rec Scr Fac Fac Upp Upp Zhi Pro Fac Res Arm Lab Res Acc Robot Analysis Total 11 | . 3 . . . 1 . 1 . . . . . 4 . . . . . 1 1 Derelict Logs Recovered 3 | . . 1 . 1 . . . . . . . 1 . . . . . . . . Drone Launches . | . . . . . . . . . . . . . . . . . . . . . Drone Recoveries . | . . . . . . . . . . . . . . . . . . . . . Exploration | -11 -10 -10 -10 -9 -8 -8 -8 -8 -6 -5 -5 -5 -5 -4 -4 -3 -3 -3 -2 -1 ------------- Run | Yrd Mat Min Exi Min Mat Sto Rec Scr Fac Fac Upp Upp Zhi Pro Fac Res Arm Lab Res Acc Turns Passed 11425 | 78 794 892 409 158 1597 621 1789 1824 751 643 47 31 55 111 667 415 127 76 74 266 Spaces Moved 9144 | 36 394 428 255 74 506 222 698 728 1288 1390 192 133 164 428 530 368 289 134 250 637 Core 52 | 15 . . . . . . . . 4 1 . . . . 1 . 9 . . 22 Treads 3326 | 21 394 428 255 74 506 222 698 728 . . . . . . . . . . . . Legs . | . . . . . . . . . . . . . . . . . . . . . Wheels . | . . . . . . . . . . . . . . . . . . . . . Hover . | . . . . . . . . . . . . . . . . . . . . . Flight 5766 | . . . . . . . . . 1284 1389 192 133 164 428 529 368 280 134 250 615 Fastest Speed 7 | 50 160 160 160 160 160 250 250 250 23 20 17 23 23 17 11 11 11 11 20 7 Average Speed 92 | 121 161 160 160 160 224 250 250 250 24 23 22 23 23 22 21 25 25 19 20 22 Slowest Speed 400 | 200 240 160 160 160 330 330 250 250 400 150 23 23 23 23 100 87 200 20 20 200 Overloaded Moves 153 | . . . . . . . . . . 20 13 . . 5 7 36 6 14 . 52 Propulsion Burnouts . | . . . . . . . . . . . . . . . . . . . . . Robots Hopped 45 | . . . . . . . . . 16 7 . . . . 6 7 7 1 . 1 Cave-ins Triggered . | . . . . . . . . . . . . . . . . . . . . . Teleports 1 | . . . . . . . . . . . . . . . . . 1 . . . Exploration Rate (%) 43 | 4 69 87 61 28 42 36 98 52 30 37 31 37 62 62 10 16 16 100 9 22 Regions Visited 20 Branch Regions 12 Pre-discovered Areas 11 | . . . 1 . . . 7 . . . . . 3 . . . . . . . Known Exits Taken 4 | . . . 1 . . . . . . 1 . . . . 1 1 . . . . Unknown Exits Taken 16 | 1 1 1 . 1 1 1 1 1 1 . 1 1 1 1 . . 1 1 1 . Scrap Searched 5 | . . 2 . . . . . . . . . . . 3 . . . . . . Spaces Dug 84 | . . . . . . . . . 11 46 1 . . . 4 6 . . . 16 Terrain Destroyed 189 | . 39 21 . . . . . . 11 65 1 . . . 4 6 . . . 42 Melee 49 | . . . . . . . . . 11 11 1 . . . 4 6 . . . 16 Projectile . | . . . . . . . . . . . . . . . . . . . . . AOE 140 | . 39 21 . . . . . . . 54 . . . . . . . . . 26 Terrain Rammed . | . . . . . . . . . . . . . . . . . . . . . Walls Destroyed . | . . . . . . . . . . . . . . . . . . . . . Machines Disabled . | . . . . . . . . . . . . . . . . . . . . . Actions | -11 -10 -10 -10 -9 -8 -8 -8 -8 -6 -5 -5 -5 -5 -4 -4 -3 -3 -3 -2 -1 --------- Run | Yrd Mat Min Exi Min Mat Sto Rec Scr Fac Fac Upp Upp Zhi Pro Fac Res Arm Lab Res Acc Total 11613 | 55 512 620 257 93 850 274 722 732 1693 1642 193 132 183 439 1070 672 335 160 266 713 Wait 1827 | 2 38 180 . 4 202 20 9 2 338 166 1 . 1 7 517 286 13 . 12 29 Move 9038 | 35 393 427 254 73 505 221 697 727 1257 1375 191 132 163 427 517 354 276 131 249 634 Hop 40 | . . . . . . . . . 14 7 . . . . 6 6 5 1 . 1 Pick Up 83 | 4 23 . 1 1 22 4 2 . 10 2 . . 3 1 3 1 2 2 1 1 Fast Attach 86 | 5 11 . . . 14 8 1 . 11 7 . . 6 . 7 4 2 4 1 5 Attach 42 | 2 2 . 1 1 7 1 1 . 14 2 . . . . 5 2 1 2 . 1 Detach 20 | . 2 . . . 1 2 . . 4 1 . . 1 . 4 2 1 1 . 1 Swap 27 | . 3 2 . 1 7 1 . 3 2 1 . . . 3 1 3 . . . . Drop 124 | . 14 . 1 1 33 10 2 . 26 5 . . 9 1 6 4 6 2 . 4 Fire 134 | 7 25 8 . 12 58 7 9 . . 6 . . . . . . . . . 2 Melee 96 | . . . . . . . . . 17 36 1 . . . 4 10 . 5 3 20 Ram . | . . . . . . . . . . . . . . . . . . . . . Kick . | . . . . . . . . . . . . . . . . . . . . . Crush 6 | . 1 3 . . 1 . 1 . . . . . . . . . . . . . Escape Stasis 49 | . . . . . . . . . . 34 . . . . . . . . . 15 Rewire 29 | . . . . . . . . . . . . . . . . . 29 . . . Trap . | . . . . . . . . . . . . . . . . . . . . . Miscellaneous 12 | . . . . . . . . . . . . . . . . . . 12 . . Route ------- -11/Scrapyard -10/Materials (discovered 2 exits: [*Mat] / [*Min]) -10/Mines (discovered 3 exits: [*Mat x2] / *Exi) -10/Exiles (discovered 2 exits: *Min x2) -9/Mines -8/Materials (discovered 3 exits: [*Fac] / *Sto x2) -8/Storage -8/Recycling (discovered 2 exits: *Fac / *Scr) -8/Scraptown -6/Factory -5/Factory (discovered 4 exits: *Fac x2 / *Upp x2) -5/Upper Caves -5/Upper Caves -5/Zhirov -4/Proximity Caves -4/Factory (discovered 4 exits: *Res / Upp x2 / [*Ext]) -3/Research (discovered 4 exits: *Res / *Arm / Qua x2) -3/Armory -3/Lab -2/Research -1/Access To Epsilon Eridani History --------- Turn | Location | Event 2 | -11/Scrapyard | Met Revision 17 11 | -11/Scrapyard | Discovered new exit (range 16) 79 | -11/Scrapyard | Entered Materials 295 | -10/Materials | Central database locked down 311 | -10/Materials | Build established: Mutant 436 | -10/Materials | Discovered new exit (range 16) 619 | -10/Materials | Discovered new exit (range 7) 751 | -10/Materials | Repaired Lgt. Cannon 873 | -10/Materials | Entered Mines 1080 | -10/Mines | Assembled infested the area 1382 | -10/Mines | Discovered new exit (range 8) 1627 | -10/Mines | Discovered new exit (range 5) 1759 | -10/Mines | Deemed a non-threat by the Exiles lab entrance 1759 | -10/Mines | Discovered new exit (range 5) 1765 | -10/Mines | Entered Exiles 1765 | -10/Exiles | Accompanied by 1 ally 1766 | -10/Exiles | Identified exit to Mines 1795 | -10/Exiles | Led the pair of lost Derelicts to a safe place 1804 | -10/Exiles | Met 8R-AWN 1831 | -10/Exiles | Met EX-HEX 1893 | -10/Exiles | Met EX-DEC 1903 | -10/Exiles | Learned location of Zion (-7) 1937 | -10/Exiles | Met EX-BIN 1959 | -10/Exiles | Aligned with FarCom system 1961 | -10/Exiles | Given EX-Vault access code 2002 | -10/Exiles | Opened EX-Vault 2012 | -10/Exiles | Found Cloak of Protection 2042 | -10/Exiles | Warned to stay clear of 0b10 Research branches 2174 | -10/Exiles | Left Exiles lab with Cloak of Protection 2174 | -10/Exiles | Entered Mines 2203 | -9/Mines | Core integrity fell below 50% 2243 | -9/Mines | Learned Materials emergency access door positions 2319 | -9/Mines | Discovered new exit (range 9) 2332 | -9/Mines | Entered Materials 2332 | -8/Materials | Evolved 4 slots: Propulsion x1, Utility x2, Weapon x1 2333 | -8/Materials | Discovered new exit (range 8) 2681 | -8/Materials | Build established: Skirmisher 3850 | -8/Materials | Discovered new exit (range 16) 3929 | -8/Materials | Discovered new exit (range 15) 3929 | -8/Materials | Entered Storage 4011 | -8/Storage | Found Prototype Protection 4011 | -8/Storage | Identified Lgt. Regenerative Plating 4095 | -8/Storage | Met 01-MTF 4524 | -8/Storage | Used back door to open Recycling access 4524 | -8/Storage | Discovered new exit (range 4) 4550 | -8/Storage | Entered Recycling 5370 | -8/Recycling | Discovered new exit (range 15) 5490 | -8/Recycling | Scanned before Scraplab entrance 5736 | -8/Recycling | Build established: Hacker-Skirmisher 6317 | -8/Recycling | Entered Scraplab 6337 | -8/Recycling | Discovered new exit (range 2) 6339 | -8/Recycling | Entered Scraptown 6341 | -8/Scraptown | System corruption cleaned by C-Scrubber 6626 | -8/Scraptown | Build established: Hacker-Gunner 6653 | -8/Scraptown | Discovered new exit (range 13) 6891 | -8/Scraptown | Visited Shadow of the Wyrm 7008 | -8/Scraptown | Visited The Evicted 7198 | -8/Scraptown | Visited CR-KLE's Repair Center 7217 | -8/Scraptown | CR-KLE repaired 5 parts 7246 | -8/Scraptown | Visited Symbiants 7316 | -8/Scraptown | Visited Cyclists 7421 | -8/Scraptown | Turned away by UFD registrar 7481 | -8/Scraptown | Visited Cave Peace 8036 | -8/Scraptown | Visited Awakened 8163 | -8/Scraptown | Entered Factory 8163 | -6/Factory | Evolved 4 slots: Propulsion x2, Utility x2 8466 | -6/Factory | Build established: Hacker-Sprinter 8616 | -6/Factory | Discovered new exit (range 16) 8728 | -6/Factory | Cargo convoy interrupted 8733 | -6/Factory | Fabricated X-67 Chaingunner? 8870 | -6/Factory | Fabricated Cld. VTOL Module (x1) 8914 | -6/Factory | Entered another Factory area 8914 | -5/Factory | Evolved 2 slots: Power x1, Utility x1 8972 | -5/Factory | Discovered new exit (range 4) 9047 | -5/Factory | Repaired Chainsword? 9252 | -5/Factory | Allied Derelicts emerged from ambush trap array 9332 | -5/Factory | Discovered new exit (range 16) 9398 | -5/Factory | Identified exit to Upper Caves 9538 | -5/Factory | Fabricated Cld. VTOL Module (x1) 9557 | -5/Factory | Entered Upper Caves 9601 | -5/Upper Caves | Attracted the attention of an 0b10 outpost 9603 | -5/Upper Caves | Discovered new exit (range 7) 9604 | -5/Upper Caves | Entered another Upper Caves area 9632 | -5/Upper Caves | Learned 12 Factory zone layouts 9633 | -5/Upper Caves | Discovered new exit (range 8) 9635 | -5/Upper Caves | Entered Zhirov 9635 | -5/Zhirov | Discovered new exit (range 3) 9640 | -5/Zhirov | Met Zhirov 9645 | -5/Zhirov | Learned location of Quarantine (-3) 9645 | -5/Zhirov | Learned location of Command (-1) 9649 | -5/Zhirov | Zhirov requested help retrieving the SGEMP Prototype 9654 | -5/Zhirov | Found Alien Artifact 9658 | -5/Zhirov | Found Alien Artifact 9658 | -5/Zhirov | Identified Integrated Reactor 9658 | -5/Zhirov | Installed Integrated Reactor, increased core energy generation (+10) 9690 | -5/Zhirov | Entered Proximity Caves 9718 | -4/Proximity Caves | Attracted the attention of an 0b10 checkpoint 9799 | -4/Proximity Caves | Discovered new exit (range 10) 9801 | -4/Proximity Caves | Entered Factory 9801 | -4/Factory | Evolved 2 slots: Propulsion x1, Utility x1 9802 | -4/Factory | Identified exit to Research 9802 | -4/Factory | Identified exit to Upper Caves 9805 | -4/Factory | Identified Transdimensional Reconstructor 9981 | -4/Factory | Fabricated Enh. Nova Cannon (x2) 10117 | -4/Factory | Fabricated Cld. VTOL Module? 10388 | -4/Factory | Discovered new exit (range 10) 10451 | -4/Factory | Repaired Broken F-cell Engine? 10468 | -4/Factory | Entered Research 10468 | -3/Research | Evolved 2 slots: Utility x2 10505 | -3/Research | Repaired Cld. VTOL Module 10863 | -3/Research | Identified exit to Armory 10863 | -3/Research | Identified exit to Quarantine 10878 | -3/Research | Spotted B-86 Titan 10881 | -3/Research | Discovered new exit (range 3) 10883 | -3/Research | Entered Armory 10887 | -3/Armory | Found Prototype Launcher 10887 | -3/Armory | Identified Tesla Bomb Launcher 10988 | -3/Armory | Found Fusion Bomb Launcher 10990 | -3/Armory | Found Fusion Bomb Launcher 11009 | -3/Armory | Lost 3 allies 11009 | -3/Armory | Warped through subspace to slip node 11009 | -3/Armory | Discovered new exit (range 1) 11010 | -3/Armory | Entered Lab 11010 | -3/Lab | Discovered new exit (range 9) 11013 | -3/Lab | Unable to decrypt terminal 11013 | -3/Lab | Opened the door to a hidden lab 11013 | -3/Lab | Detected by scanners 11014 | -3/Lab | Gained access to the hidden lab's interior 11015 | -3/Lab | Found Alien Artifact 11021 | -3/Lab | Found Transdimensional Reconstructor 11023 | -3/Lab | Confronted by A5 11025 | -3/Lab | Found Alien Artifact 11025 | -3/Lab | Identified Integrated Mediator 11025 | -3/Lab | Installed Integrated Mediator, increased core attachment efficiency 11034 | -3/Lab | Found Alien Artifact 11034 | -3/Lab | Identified Core Expander 11034 | -3/Lab | Installed Core Expander, added new Propulsion slot 11040 | -3/Lab | Found Prototype Hackware 11040 | -3/Lab | Identified Deep Network Scanner 11042 | -3/Lab | Found Prototype Energy Gun 11042 | -3/Lab | Identified Tachyon Dispersion Ray 11046 | -3/Lab | Unable to decrypt terminal 11086 | -3/Lab | Entered Research 11086 | -2/Research | Evolved 2 slots: Utility x2 11115 | -2/Research | Spotted B-90 Cyclops 11157 | -2/Research | Discovered new exit (range 16) 11160 | -2/Research | Entered Access 11160 | -1/Access | Evolved 2 slots: Utility x2 11314 | -1/Access | Identified exit to Surface 11401 | -1/Access | Intercept squad dispatched 11410 | -1/Access | Spotted Tracker 11411 | -1/Access | Spotted Tracker 11422 | -1/Access | Released all parts (22) 11426 | *** | Escaped! Last Messages --------------- 11422_ Released Imp. Hacking Suite. 11422_ Released Adv. Melee Analysis Suite. 11422_ Released System Shield. 11422_ Released Deep Network Scanner. 11422_ Released Lgt. Regenerative Plating. 11422_ Released Cld. VTOL Module. 11422_ Released Imp. VTOL Module. 11422_ Released System Shield. 11422_ Released Sml. Storage Unit. 11422_ Released Hacking Suite. 11422_ Released Imp. VTOL Module. 11422_ Released Hacking Suite. 11422_ Released Adv. Weight Redist. System. 11422_ Released Enh. Optical Array. 11422_ Released Cld. VTOL Module. 11422_ Released Field Propulsion Drive. 11422_ Released Imp. System Shield. 11422_ Released Fusion Bomb Launcher. 11423_ The Access Shell folds into the floor. [Achievement: Epsilon Run] Map ----- +----------------------------------------------------+ | ?????? ???????????????????????????????????? | | ?????#? ! ???????????????????????????????????? | | ?????# " ???????????????????????????????????? | | ??????""" ??????????????????????????????????? | | ???????""" ??????????????????????????????????? | | ????????? ??????????????????????????????????? | | ?????????? ??????????????????????????????????? | | ??????????? ??#?####?????????????????????????? | | ???????????? # # #????????????????????????? | | ????????????? # # ?###????????????????????? | | ######+########+# ##;############ ???????? | | ^ %! ??????? | | /] s R % H???????? | | #+#############+ ""######????????????? | | # ==""#?????????????????? | | # "## ]==""#?????????????????? | | * # ### =!!*T#?????????????????? | | " " #?# !=""#?????????????????? | | """ # ### !!""#?????????????????? | | "" # ## =""##????????????????? | | " # ## #????????????????? | | # ### ##????????????????? | | # #?# #?????????????????? | | ###### #?# #?????????????????? | | ?????# #?# #?????????????????? | | ?????# #?# @" #?????????????????? | | ?????##############?# "" #?????????????????? | | ????????????????????# #?????????????????? | | ????????????????????# #?????????????????? | | ????????????????????# #?????????????????? | | ????????????????????#""""""""""#?????????????????? | | ?????????????????????????????????????????????????? | | ?????????????###?????????????????????????????????? | | ?????????#####"####??????????????????????????????? | | ?????????# #??????????????????????????????? | | ?????????# #???BB????BB???????????????????? | | ?????????# ]#???BB????BB???????????????????? | | ?????????# #??????????????????????????????? | | ?????????# " #??????????????????????????????? | | ########## """ #??????????????????????????????? | | + """ #??????????????????????????????? | | # " #??????????????????????????????? | | # #??????????????????????????????? | | + #??????????????????????????????? | | # " * #??????????????????????????????? | | # """ +??????????????????????????????? | | # """ #??????????????????????????????? | | #####+##+# " #??????????????????????????????? | | ??? ?# #??????????????????????????????? | | ? # #??????????????????????????????? | +----------------------------------------------------+ Best States ------------- Heat Dissipation 52 Energy Generation 49 Energy Capacity 740 Matter Stores 300 Matter Capacity 300 Sight Range 22 Terrain Scan Density 10 Cloak Strength 5 Additional Mass Support 9 Armor Coverage 600 Melee Speed Boost 30 Evasion (%) 78 Melee Accuracy 8 Recoil Reduction 3 Offensive Hacking 67 Defensive Hacking 32 Authchip Count 1 Item Schematics ----------------- Imp. VTOL Module | -8/Materials | Scanalyzed System Shield | -8/Materials | Scanalyzed Hacking Suite | -8/Materials | Scanalyzed Adv. Weight Redist. System | -8/Materials | Scanalyzed F-cell Engine | -6/Factory | Scanalyzed Gravity Neutralizer | -6/Factory | Scanalyzed Cld. VTOL Module | -6/Factory | Hacked Assault Drone Bay | -5/Zhirov | Free Exp. Heat Sink | -5/Zhirov | Free Exp. Optical Array | -5/Zhirov | Free Imp. Arc Thrower | -5/Zhirov | Free Imp. Reaction Control System | -4/Factory | Scanalyzed Enh. Nova Cannon | -3/Research | Scanalyzed Robot Schematics ------------------ None Fabricated ------------ X-67 Chaingunner | x2 | -6/Factory | Preloaded Cld. VTOL Module | x1 | -6/Factory | Authchip Cld. VTOL Module | x1 | -5/Factory Enh. Nova Cannon | x2 | -4/Factory | Preloaded Cld. VTOL Module | x1 | -4/Factory Alien Tech Used ----------------- Integrated Reactor Transdimensional Reconstructor Integrated Mediator Core Expander Achievements -------------- Epsilon Run Challenges ------------ None Game ------ Seed SniperProtonDatajack Manual? 0 Play Time 01:50:52 Cumulative 79.0 hours Start 2025.03.21 @ 22:57:18 End 2025.03.22 @ 00:58:58 Sessions 1 Manual Loads 0 Difficulty Rogue Special Mode None Game No. 76 Rogue 76 Adventurer 0 Explorer 0 Win Type 0 Total 3 Types 1/0/1/1/0/0/0/0/0 Lore% 56 Gallery% 54 Achievement% 51 Wizard Run 0 Options --------- Layout 0 ASCII 0 Keyboard 1 Movement Numpad Keybinds 0 Fullscreen 1 Font 24/Smallcaps Map View 76x56 Zoom Use 0% Tactical HUD 1 Map Filters NONE Filters NONE Steam 1 RUN: 7a714254-6c5c-4d10-a220-8070159611d7